Cogmind - Beta 13 @@@ ROGUE MODE // 2024.04.05 @ 18:25:52 Player: DeNiCoN Result: Destroyed by G-50 Soldier with Heavy Laser Performance ------------- Evolutions (2) 1000 Regions Visited (3) 600 Robots Destroyed (6) 30 Value Destroyed (261) 261 Prototype IDs (1) 20 Alien Tech Used (0) 0 Bonus (0) 0 TOTAL SCORE: 1911 Bonus ------- None Cogmind --------- Core Integrity 0/550 Matter 300/300 Energy 99/100 System Corruption 0% Temperature Cool (54) Movement Walking (120) Location -8/Materials Parts ------- > --- POWER (2) -------- (None) > --- PROPULSION (4) --- Aluminum Leg > --- UTILITY (3) ------ Improved Terrain Scan Processor > --- WEAPON (2) ------- Katana > --- INVENTORY (5) ---- VTOL Module Improved VTOL Module Improved Signal Interpreter Ion Cannon Light Assault Rifle Peak State ------------ > --- POWER ------------ Light Ion Engine Subdweller Power Source > --- PROPULSION ------- Aluminum Leg Aluminum Leg Improved VTOL Module > --- UTILITY ---------- Small Storage Unit Terrain Scanner Improved Terrain Scan Processor > --- WEAPON ----------- Light Assault Rifle Light Cannon > --- INVENTORY -------- VTOL Module Improved Signal Interpreter Riot Gun Ion Cannon Assault Rifle Subdweller Machine Gun Subdweller Machine Gun [Rating: 17] Favorites ----------- Power Light Ion Engine Engine Light Ion Engine Propulsion Aluminum Leg Leg Aluminum Leg Flight Unit Improved VTOL Module Utility Small Storage Unit Device Terrain Scanner Storage Small Storage Unit Processor Improved Terrain Scan Processor Protection Scrap Shield Weapon Assault Rifle Energy Gun Riot Gun Ballistic Gun Assault Rifle Ballistic Cannon Light Cannon Slashing Weapon Katana Build | -11 -10 -10 -8 ------- Run | Yrd Mat Sub Mat Slots Evolved 4 | . . . 4 Power 1 | . . . 1 Propulsion 2 | . . . 2 Utility 1 | . . . 1 Weapon . | . . . . Parts Attached 23 | 3 5 7 8 Power 4 | 1 . 2 1 Engine 4 | 1 . 2 1 Core . | . . . . Reactor . | . . . . Propulsion 4 | . 2 . 2 Treads . | . . . . Leg 3 | . 2 . 1 Wheel . | . . . . Hover . | . . . . Flight 1 | . . . 1 Utility 6 | 1 1 3 1 Device 2 | . 1 1 . Storage 2 | 1 . 1 . Processor 1 | . . . 1 Hackware . | . . . . Protection 1 | . . 1 . Artifact . | . . . . Weapon 9 | 1 2 2 4 Energy Gun 1 | . . . 1 Energy Cannon . | . . . . Ballistic Gun 6 | 1 2 1 2 Ballistic Cannon 1 | . . 1 . Launcher . | . . . . Special Weapon . | . . . . Impact Weapon . | . . . . Slashing Weapon 1 | . . . 1 Piercing Weapon . | . . . . Special Melee Weapon . | . . . . Unidentified Prototypes 1 | . . . 1 Parts Lost 13 | . . 3 10 Power 3 | . . 1 2 Propulsion 2 | . . . 2 Utility 3 | . . 1 2 Weapon 5 | . . 1 4 Highest Loss Streak 10 | . . 3 10 To Critical Strikes . | . . . . Average Slot Usage (%) 90 | . 99 94 69 Engine 13 | . 14 12 15 Leg 25 | . 28 28 15 Device 11 | . 13 12 7 Storage 11 | . 14 12 8 Ballistic Gun 22 | . 28 25 8 Ballistic Cannon 3 | . . 2 8 Naked Turns . | . . . . Heaviest Build 18 | 9 13 15 18 Greatest Support 20 | 3 20 20 20 Greatest Overweight (x) 4 | 2 . . 4 Average Overweight (x) . | 1 . . . Largest Inventory Capacity 8 | 8 8 8 8 Average Capacity 7 | 6 8 7 7 Most Carried 8 | 5 4 5 8 Average Carried 4 | 4 2 4 5 Final Capacity 8 | 8 8 8 5 Final Carried 5 | 5 3 5 5 Class Distribution -------------------- 100% | Mutant Dominant Class ---------------- Mutant | -10/Materials Mutant | -10/Subcaves Mutant | -8/Materials Resources | -11 -10 -10 -8 ----------- Run | Yrd Mat Sub Mat Matter Collected 530 | 229 . 226 75 Remotely . | . . . . Salvage Created 273 | . . 150 123 Parts 21 | . . 13 8 Haulers Intercepted . | . . . . Recyclers Shooed . | . . . . Parts Field Recycled . | . . . . Retrieved Matter . | . . . . Parts Self-Destructed 11 | . . 11 . Prevented . | . . . . Kills | -11 -10 -10 -8 ------- Run | Yrd Mat Sub Mat Combat Hostiles Destroyed 6 | . . 3 3 Melee 2 | . . . 2 Guns 4 | . . 3 1 Classes Destroyed 2 | . . 1 1 Grunt 3 | . . . 3 Subdweller 3 | . . 3 . Best Kill Streak 3 | . . 3 2 Combat Bots Only 3 | . . 3 2 Max Kills in Single Turn 1 | . . 1 1 Gunslinging . | . . . . Exploded . | . . . . Melee 1 | . . . 1 Uniques/NPCs Destroyed . | . . . . Combat | -11 -10 -10 -8 -------- Run | Yrd Mat Sub Mat Hostile Shots Fired 130 | . . 38 92 Missed 22 | . . 8 14 Damage Taken 2032 | . . 705 1327 Core 677 | . . 125 552 Absorbed by Shields . | . . . . Core Remaining (%) 75 | 100 . 50 . Volleys Fired 35 | . . 24 11 Largest 2 | . . 2 2 Hottest 85 | . . 55 85 Shots Fired 69 | . . 48 21 Gun 53 | . . 40 13 Cannon 16 | . . 8 8 Launcher . | . . . . Special . | . . . . Kinetic 66 | . . 48 18 Thermal . | . . . . Explosive . | . . . . Electromagnetic 3 | . . . 3 Robot Hit Streak 8 | . . 8 8 Robot Miss Streak 5 | . . 1 5 Penetration Max . | . . . . Secondary Targets 1 | . . 1 . Max Gunslinging Chain 1 | . . 1 . Shots Hit Robots 33 | . . 17 16 Core Hits 15 | . . 5 10 Critical Kills . | . . . . Critical Parts Destroyed . | . . . . Critical Strikes . | . . . . Melee Attacks 5 | . . . 5 Impact . | . . . . Slashing 5 | . . . 5 Piercing . | . . . . Sneak Attacks . | . . . . Combat Hostiles . | . . . . Follow-up Attacks . | . . . . Damage Inflicted 525 | . . 214 311 Guns 313 | . . 214 99 Cannons 84 | . . . 84 Explosions . | . . . . Melee 128 | . . . 128 Ramming . | . . . . Kinetic 368 | . . 214 154 Thermal . | . . . . Explosive . | . . . . Electromagnetic 29 | . . . 29 Impact . | . . . . Slashing 128 | . . . 128 Piercing . | . . . . Highest Corruption . | . . . . Average Corruption . | . . . . Corruption Purged . | . . . . Corruption Blocked . | . . . . Overload Shots . | . . . . Overflow Damage . | . . . . Projectiles . | . . . . Explosions . | . . . . Melee . | . . . . Knockbacks 2 | . . . 2 Impact . | . . . . Kinetic 1 | . . . 1 Secondary 1 | . . . 1 Self-Inflicted Damage . | . . . . Shots . | . . . . Rammed . | . . . . Targets Rammed . | . . . . Kicked . | . . . . Crushed . | . . . . Highest Temperature 209 | . . . 209 Average Temperature 129 | . . . 129 Received Heat Transfer 915 | . . 78 837 Siege Activations . | . . . . Robots Corrupted . | . . . . Combat Hostiles . | . . . . Parts Fried . | . . . . Impact Corruptions . | . . . . Robots Melted . | . . . . Combat Hostiles . | . . . . Parts Melted . | . . . . Heat Transferred . | . . . . Parts Sabotaged . | . . . . Parts Stolen . | . . . . Parts Stripped . | . . . . Power Chain Reactions . | . . . . Alert | -11 -10 -10 -8 ------- Run | Yrd Mat Sub Mat Peak Influence 30 | . 5 . 30 Initial . | . . . . Average 3 | . 4 . 2 Maximum Alert Level . | . . . . Low Security (%) 100 | 100 100 . 100 Level 1 . | . . . . Level 2 . | . . . . Level 3 . | . . . . Level 4 . | . . . . Level 5 . | . . . . High Security . | . . . . Max Security . | . . . . Squads Dispatched . | . . . . Investigation . | . . . . Extermination . | . . . . Reinforcement . | . . . . Assault . | . . . . Garrison . | . . . . Intercept . | . . . . Searches Triggered . | . . . . Construction Impeded . | . . . . Haulers Reinforced . | . . . . Active Scanning Responses . | . . . . Cargo Convoy Interrupts . | . . . . Stealth | -11 -10 -10 -8 --------- Run | Yrd Mat Sub Mat Distress Signals 1 | . . . 1 Communications Jammed . | . . . . Distress Signals . | . . . . Times Spotted 17 | . . 7 10 Peak Tracking Total 9 | . . 6 9 Tactical Retreats . | . . . . Traps | -11 -10 -10 -8 ------- Run | Yrd Mat Sub Mat Traps Triggered 1 | . . 1 . Indirectly . | . . . . Trap Hack Attempts . | . . . . Triggered . | . . . . Disarmed . | . . . . Reprogrammed . | . . . . Reused . | . . . . Traps Extracted . | . . . . Installed . | . . . . Triggered . | . . . . Machines | -11 -10 -10 -8 ---------- Run | Yrd Mat Sub Mat Machines Disabled . | . . . . Max in Single Turn . | . . . . Machines Repaired . | . . . . Machines Dismantled . | . . . . Machines Sabotaged . | . . . . Overloaded Fab Kills . | . . . . Hacking | -11 -10 -10 -8 --------- Run | Yrd Mat Sub Mat Machines Accessed 1 | . 1 . . Terminals 1 | . 1 . . Fabricators . | . . . . Repair Stations . | . . . . Recycling Units . | . . . . Scanalyzers . | . . . . Garrison Access . | . . . . Total Hacks 4 | . 4 . . Successful 3 | . 3 . . Failed 1 | . 1 . . Catastrophic . | . . . . Database Lockouts . | . . . . Manual . | . . . . Terminals 4 | . 4 . . Fabricators . | . . . . Repair Stations . | . . . . Recycling Units . | . . . . Scanalyzers . | . . . . Garrison Access . | . . . . Terminal Hacks 3 | . 3 . . Robot Analysis 1 | . 1 . . Emergency Access Points 1 | . 1 . . Zone Layout 1 | . 1 . . Fabricator Hacks . | . . . . Repair Station Hacks . | . . . . Recycling Unit Hacks . | . . . . Scanalyzer . | . . . . Garrison Access Hacks . | . . . . Unauthorized Hacks . | . . . . Terminals . | . . . . Fabricators . | . . . . Repair Stations . | . . . . Recycling Units . | . . . . Scanalyzers . | . . . . Garrison Access . | . . . . Data Cores Recovered . | . . . . Used . | . . . . Hacking Detections 1 | . 1 . . Full Trace Events 1 | . 1 . . Feedback Events . | . . . . Feedback Blocked . | . . . . Robot Schematics Acquired . | . . . . Robots Built . | . . . . Authchips . | . . . . Time . | . . . . Total Robot Build Rating . | . . . . Part Schematics Acquired . | . . . . Parts Built . | . . . . Authchips . | . . . . Time . | . . . . Total Part Build Rating . | . . . . Parts Repaired . | . . . . Time . | . . . . Parts Recycled . | . . . . Recycled Matter . | . . . . Retrieved Matter . | . . . . Retrieved Components . | . . . . Parts Scanalyzed . | . . . . Part Schematics Acquired . | . . . . Parts Damaged . | . . . . Bothacking | -11 -10 -10 -8 ------------ Run | Yrd Mat Sub Mat Used RIF Installer . | . . . . Robots Hacked . | . . . . Non-combat . | . . . . Combat . | . . . . Robot Hacks Applied . | . . . . Relay Couplers Released . | . . . . Fabnet Peak Effective % . | . . . . Robots Rewired . | . . . . Allies Hacked . | . . . . Hacks Repelled . | . . . . Allies | -11 -10 -10 -8 -------- Run | Yrd Mat Sub Mat Total Allies . | . . . . Largest Group . | . . . . Highest-Rated Group . | . . . . Highest-Rated Ally . | . . . . Total Orders . | . . . . Ally Attacks . | . . . . Total Damage . | . . . . Kills . | . . . . Allies Corrupted . | . . . . Allies Melted . | . . . . Intel | -11 -10 -10 -8 ------- Run | Yrd Mat Sub Mat Robot Analysis Total 1 | . 1 . . Derelict Logs Recovered . | . . . . Drone Launches . | . . . . Drone Recoveries . | . . . . Exploration | -11 -10 -10 -8 ------------- Run | Yrd Mat Sub Mat Turns Passed 1346 | 73 351 631 291 Spaces Moved 372 | 62 52 134 124 Core 65 | 62 . . 3 Treads . | . . . . Legs 307 | . 52 134 121 Wheels . | . . . . Hover . | . . . . Flight . | . . . . Fastest Speed 50 | 50 120 120 50 Average Speed 117 | 104 120 120 119 Slowest Speed 250 | 150 120 120 250 Overloaded Moves . | . . . . Propulsion Burnouts . | . . . . Robots Hopped . | . . . . Cave-ins Triggered . | . . . . Exploration Rate (%) 7 | 3 8 8 9 Regions Visited 3 Branch Regions 1 Pre-discovered Areas . | . . . . Known Exits Taken . | . . . . Unknown Exits Taken 3 | 1 1 1 . Scrap Searched . | . . . . Spaces Dug . | . . . . Terrain Destroyed 1 | . . . 1 Melee . | . . . . Projectile 1 | . . . 1 AOE . | . . . . Terrain Rammed . | . . . . Walls Destroyed . | . . . . Machines Disabled . | . . . . Actions | -11 -10 -10 -8 --------- Run | Yrd Mat Sub Mat Total 1209 | 69 341 560 239 Wait 751 | . 282 385 84 Move 369 | 61 51 133 124 Hop . | . . . . Pick Up 21 | 5 2 8 6 Fast Attach 4 | 3 . . 1 Attach 17 | . 5 6 6 Detach 3 | . 1 1 1 Swap 2 | . . 1 1 Drop 2 | . . 2 . Fire 35 | . . 24 11 Melee 5 | . . . 5 Ram . | . . . . Kick . | . . . . Crush . | . . . . Escape Stasis . | . . . . Rewire . | . . . . Trap . | . . . . Miscellaneous . | . . . . Route ------- -11/Scrapyard -10/Materials -10/Subcaves -8/Materials History --------- Turn | Location | Event 9 | -11/Scrapyard | Discovered new exit (range 15) 74 | -11/Scrapyard | Entered Materials 125 | -10/Materials | Discovered new exit (range 7) 302 | -10/Materials | Build established: Mutant 425 | -10/Materials | Entered Subcaves 531 | -10/Subcaves | Ambushed by swarm of Subdwellers 595 | -10/Subcaves | Lost 3 parts (1p1u1w) 646 | -10/Subcaves | Discovered new exit (range 10) 655 | -10/Subcaves | A swath of the cavern ceiling suddenly collapsed 1047 | -10/Subcaves | Shifting Twisted Machinery released Riot Gun 1056 | -10/Subcaves | Entered Materials 1056 | -8/Materials | Evolved 4 slots: Power x1, Propulsion x2, Utility x1 1335 | -8/Materials | Core integrity fell below 50% 1344 | -8/Materials | Core integrity fell below 20% 1347 | -8/Materials | Destroyed by G-50 Soldier with Heavy Laser Last Messages --------------- R-06 Scavenger collects Imp. Heat Sink. L-31 Rogue destroyed. Critical hit (Burn: +37). Sub. Machine Gun destroyed. Acquired Katana. Sub. Machine Gun destroyed. Critical hit (Burn: +37). G-47 Trooper destroyed. Sml. Storage Unit destroyed. Critical hit (Burn: +37). Acquired 43 matter. G-47 Trooper destroyed. R-06 Scavenger collects Aluminum Leg. Acquired Aluminum Leg. Critical hit (Burn: +37). Acquired 32 matter. K-01 Serf collects debris. R-06 Scavenger collects Aluminum Leg. K-01 Serf collects debris. Critical hit (Burn: +37). Map ----- +----------------------------------------------------+ | ??????????????????????????????????????????????? | | ??????????????????????????????????????????????? | | ??????????????????????????????????????????????? | | ??????????????????????????????????????????????? | | ??????#???????????????????????????????????????? | | ?????#????????????????????????????????????????? | | ??????????????????????????????????????????????? | | ????????????????#?????????????????????????????? | | ??????????????????????????????????????????????? | | ?????????????????? ???????????????????????????? | | ??#???##?????#?#??? ??????????????????????????? | | ?######???#?#???#?????????????????????????????? | | ##!!!!##????#??#?# ?????"???????????????????? | | #! !#?##?#####? ???#???? ??????????????????? | | # #????###?#???? ??#?????????????????????? | | ?### ###?###### ? ????##? ?????????????????? | | #?## ##?#??## ??? ????????????????????? | | ???# ######?# ? ?###??? ????????????????? | | ?### #??###?#? ? ?#???# ??##?#????????????? | | #?## ####?########??#?# ? ###?????????????? | | ??## ######?##?####?#??? #???????????????? | | ##?## ### #?#??######## #### ??????????? | | ?#### ### ###### % r ???????????? | | #???# ### ##?###g %%k ???????????????? | | ??### ### ##??##g%g ???????????????????? | | ##### ### ##?#?# !@#####+##?##????????????? | | #??## #?# ###### * gu #????????????? | | ##?## ### ###### [ # [ !#? ??????????? | | #### ###+####### # #????????????? | | ?### #? #????????????? | | #?## # #????????????? | | #### # ?? # ???????????? | | ??## ###+########### ? #????????????? | | ???## ## ##?#?##? ??? #????????????? | | ???## ## """ #??#?#???##??#####????????????? | | ???## ## """ #?#??##?? ????? ??????????????? | | ????# ## """ ##?#?##???? ? ????????????????? | | ????# ##[ #??#?#?? ? ? ???????????????? | | ??#?# ## #??#?##???? ??????????????????? | | ????# ############?#????????????????????????? | | ????######???????#????????????????????????????? | | ???????#??????????#???????????????????????????? | | ???#??????????????????????????????????????????? | | ??????????????????????????????????????????????? | | ????????#????????#????????????????????????????? | | ??????????????????????????????????????????????? | | ??????????????????????????????????????????????? | | ??????????????????????????????????????????????? | | ??????????????????????????????????????????????? | | ??????????????????????????????????????????????? | +----------------------------------------------------+ Best States ------------- Heat Dissipation 31 Energy Generation 20 Energy Capacity 225 Matter Stores 300 Matter Capacity 300 Sight Range 16 Terrain Scan Range 14 Terrain Scan Density 110 Armor Coverage 800 Evasion (%) 55 Item Schematics ----------------- None Robot Schematics ------------------ None Fabricated ------------ Nothing Alien Tech Used ----------------- None Achievements -------------- None Challenges ------------ None Game ------ Seed SmallPhaseTerminator Manual? 0 Play Time 00:14:46 Cumulative 7.4 hours Start 2024.04.05 @ 18:08:45 End 2024.04.05 @ 18:25:52 Sessions 1 Manual Loads 0 Difficulty Rogue Special Mode None Game No. 9 Rogue 9 Adventurer 0 Explorer 0 Win Type - Total 0 Types 0/0/0/0/0/0/0/0/0 Lore% 17 Gallery% 10 Achievement% 12 Wizard Run 0 Options --------- Layout 1 ASCII 0 Keyboard 0 Movement Mouse Keybinds 0 Fullscreen 1 Font 24/Smallcaps Map View 50x35 Zoom Use 0% Tactical HUD 0 Map Filters NONE Filters NONE Steam 1 RUN: 0fb14154-bd9e-4b7f-91d8-030646a039e2